[Event "*** Titled Tuesday 3|2 Blitz"]
[Site "Chess.com"]
[Date "2015.10.06"]
[Round "8"]
[White "Tal-Baronfew"]
[Black "IMRosen"]
[Result "1-0"]
[WhiteElo "2758"]
[BlackElo "2253"]
[TimeControl "180+2"]
[EndTime "12:42:27 PDT"]
[Termination "Tal-Baronfew won by resignation"]

1. d4 {[%clk 0:03:01.9]} 1... d5 {[%clk 0:03:00.3]} 2. c4 {[%clk 0:03:02.6]}
2... e6 {[%clk 0:03:02]} 3. Nc3 {[%clk 0:03:03.3]} 3... Nf6 {[%clk 0:03:03.7]}
4. cxd5 {[%clk 0:03:03.4]} 4... exd5 {[%clk 0:03:05]} 5. Bg5 {[%clk 0:03:03.6]}
5... c6 {[%clk 0:03:06.7]} 6. Qc2 {[%clk 0:03:03.6]} 6... Na6 {[%clk 0:03:07.4]}
7. e3 {[%clk 0:02:57.9]} 7... Nb4 {[%clk 0:03:07.8]} 8. Qb1 {[%clk 0:02:47.1]}
8... g6 {[%clk 0:03:08.8]} 9. Qd1 {[%clk 0:02:26.7]} 9... Bf5 {[%clk 0:03:08.5]}
10. Rc1 {[%clk 0:02:27.6]} 10... a5 {[%clk 0:03:10.1]} 11. a3 {[%clk 0:02:27.6]}
11... Na6 {[%clk 0:03:11.7]} 12. Qb3 {[%clk 0:02:23.9]} 12... b5 {[%clk
0:02:57.3]} 13. Bxf6 {[%clk 0:01:55.4]} 13... Qxf6 {[%clk 0:02:56]} 14. Nxd5
{[%clk 0:01:54.7]} 14... cxd5 {[%clk 0:02:48.7]} 15. Bxb5+ {[%clk 0:01:56]}
15... Kd8 {[%clk 0:02:39.3]} 16. Qxd5+ {[%clk 0:01:53.4]} 16... Bd6 {[%clk
0:02:31.4]} 17. Qxa8+ {[%clk 0:01:52]} 17... Nb8 {[%clk 0:02:33]} 18. Nf3 {[%clk
0:01:40.9]} 18... Ke7 {[%clk 0:01:50.5]} 19. Qb7+ {[%clk 0:01:30.5]} 19... Kf8
{[%clk 0:01:49.1]} 20. O-O {[%clk 0:01:21.3]} 20... Kg7 {[%clk 0:01:50.3]} 21.
Rfe1 {[%clk 0:01:19.7]} 21... Bg4 {[%clk 0:01:48.4]} 22. h3 {[%clk 0:01:19]}
22... h5 {[%clk 0:01:45.2]} 23. Bf1 {[%clk 0:01:09]} 23... Bd7 {[%clk 0:01:12]}
24. e4 {[%clk 0:01:05.5]} 24... Qf4 {[%clk 0:00:22.9]} 25. e5 {[%clk 0:01:05.4]}
25... Be7 {[%clk 0:00:24]} 26. Qe4 {[%clk 0:00:51.3]} 26... Qh6 {[%clk
0:00:14.6]} 27. d5 {[%clk 0:00:47.7]} 27... Bf5 {[%clk 0:00:16.3]} 28. Qe3
{[%clk 0:00:46.1]} 28... g5 {[%clk 0:00:05.9]} 29. Nd4 {[%clk 0:00:46.4]} 29...
Bg6 {[%clk 0:00:03.9]} 30. d6 {[%clk 0:00:47.4]} 30... Bd8 {[%clk 0:00:05.3]}
31. Bd3 {[%clk 0:00:36.5]} 31... Qh7 {[%clk 0:00:06]} 32. Bxg6 {[%clk
0:00:33.2]} 32... Qxg6 {[%clk 0:00:07.9]} 33. e6 {[%clk 0:00:33.2]} 33... Re8
{[%clk 0:00:08.8]} 34. e7 {[%clk 0:00:32.3]} 34... Bb6 {[%clk 0:00:09.7]} 35.
Ne6+ {[%clk 0:00:21.5]} 35... fxe6 {[%clk 0:00:06.6]} 36. Qxb6 {[%clk 0:00:22]}
36... Nd7 {[%clk 0:00:08.3]} 37. Qd4+ {[%clk 0:00:22.5]} 37... e5 {[%clk
0:00:06.5]} 38. Rxe5 {[%clk 0:00:22.7]} 38... Nxe5 {[%clk 0:00:06]} 39. Qxe5+
{[%clk 0:00:23.6]} 39... Kf7 {[%clk 0:00:07.2]} 40. Re1 {[%clk 0:00:20.8]} 40...
Qd3 {[%clk 0:00:05.2]} 41. Qe6+ {[%clk 0:00:21.3]} 41... Kg7 {[%clk 0:00:06]}
42. d7 {[%clk 0:00:22]} 1-0

[Event "*** Titled Tuesday 3|2 Blitz"]
[Site "Chess.com"]
[Date "2015.10.06"]
[Round "8"]
[White "BIG_Pirate"]
[Black "Boryboy"]
[Result "1-0"]
[WhiteElo "2290"]
[BlackElo "2461"]
[TimeControl "180+2"]
[EndTime "12:42:35 PDT"]
[Termination "BIG_Pirate won by resignation"]

1. e4 {[%clk 0:03:01.9]} 1... e6 {[%clk 0:02:57.3]} 2. d4 {[%clk 0:02:44.9]}
2... d5 {[%clk 0:02:59.2]} 3. Nc3 {[%clk 0:02:45.6]} 3... Nf6 {[%clk 0:02:57.9]}
4. e5 {[%clk 0:02:45.7]} 4... Ne4 {[%clk 0:02:59.1]} 5. Nxe4 {[%clk 0:02:33.2]}
5... dxe4 {[%clk 0:03:01]} 6. Ne2 {[%clk 0:02:31.9]} 6... c5 {[%clk 0:03:00.2]}
7. c3 {[%clk 0:02:32.8]} 7... Nc6 {[%clk 0:03:01]} 8. Be3 {[%clk 0:01:59.2]}
8... cxd4 {[%clk 0:03:00.5]} 9. cxd4 {[%clk 0:01:56.7]} 9... Bb4+ {[%clk
0:02:46.2]} 10. Nc3 {[%clk 0:01:57.2]} 10... O-O {[%clk 0:02:38.1]} 11. Be2
{[%clk 0:01:57.7]} 11... b6 {[%clk 0:02:33.3]} 12. O-O {[%clk 0:01:57.3]} 12...
Bxc3 {[%clk 0:02:24.6]} 13. bxc3 {[%clk 0:01:58]} 13... Bb7 {[%clk 0:02:26.5]}
14. Qc2 {[%clk 0:01:45.8]} 14... Rc8 {[%clk 0:02:21.9]} 15. Qxe4 {[%clk
0:01:36.9]} 15... Qd7 {[%clk 0:02:02.4]} 16. Qh4 {[%clk 0:01:33]} 16... Ne7
{[%clk 0:01:51.7]} 17. Rac1 {[%clk 0:01:29.5]} 17... Nf5 {[%clk 0:01:49.6]} 18.
Qh3 {[%clk 0:01:29.2]} 18... f6 {[%clk 0:01:46.8]} 19. exf6 {[%clk 0:01:25.9]}
19... Rxf6 {[%clk 0:01:47.8]} 20. Rfd1 {[%clk 0:00:48.9]} 20... Rg6 {[%clk
0:01:46.1]} 21. Bf3 {[%clk 0:00:49]} 21... Bxf3 {[%clk 0:01:45.9]} 22. Qxf3
{[%clk 0:00:49.2]} 22... Nh4 {[%clk 0:01:47.3]} 23. Qe4 {[%clk 0:00:48.5]} 23...
Nxg2 {[%clk 0:01:41.2]} 24. Kh1 {[%clk 0:00:42.5]} 24... Nxe3 {[%clk 0:01:21.7]}
25. fxe3 {[%clk 0:00:42.6]} 25... Qd5 {[%clk 0:01:23.1]} 26. Qxd5 {[%clk
0:00:36]} 26... exd5 {[%clk 0:01:25]} 27. Rf1 {[%clk 0:00:21.1]} 27... Rgc6
{[%clk 0:01:25.1]} 28. Rf5 {[%clk 0:00:21.7]} 28... Rxc3 {[%clk 0:01:24.5]} 29.
Rxc3 {[%clk 0:00:21.2]} 29... Rxc3 {[%clk 0:01:26.4]} 30. Re5 {[%clk 0:00:22.7]}
30... a5 {[%clk 0:01:21.9]} 31. Kg2 {[%clk 0:00:23.8]} 31... Rc2+ {[%clk
0:01:22.4]} 32. Kg3 {[%clk 0:00:24.1]} 32... Rxa2 {[%clk 0:01:23.6]} 33. Rxd5
{[%clk 0:00:25.3]} 33... Rb2 {[%clk 0:01:23.7]} 34. e4 {[%clk 0:00:23.7]} 34...
a4 {[%clk 0:01:25.1]} 35. Rd7 {[%clk 0:00:23]} 35... Rb5 {[%clk 0:01:25.1]} 36.
e5 {[%clk 0:00:22.1]} 36... Kf8 {[%clk 0:01:25.8]} 37. e6 {[%clk 0:00:14.4]}
37... a3 {[%clk 0:01:26.2]} 38. d5 {[%clk 0:00:15.7]} 38... a2 {[%clk 0:00:48]}
39. d6 {[%clk 0:00:16.4]} 39... g5 {[%clk 0:00:48.6]} 40. e7+ {[%clk 0:00:14.4]}
40... Kf7 {[%clk 0:00:49]} 41. Rd8 {[%clk 0:00:15.7]} 41... Re5 {[%clk
0:00:44.9]} 42. Rf8+ {[%clk 0:00:16.7]} 42... Kg7 {[%clk 0:00:46.1]} 43. Ra8
{[%clk 0:00:18.2]} 43... Kf7 {[%clk 0:00:42]} 44. Rxa2 {[%clk 0:00:17.3]} 1-0

[Event "*** Titled Tuesday 3|2 Blitz"]
[Site "Chess.com"]
[Date "2015.10.06"]
[Round "8"]
[White "dretch"]
[Black "kpio91"]
[Result "0-1"]
[WhiteElo "2506"]
[BlackElo "2518"]
[TimeControl "180+2"]
[EndTime "12:44:38 PDT"]
[Termination "kpio91 won by resignation"]

1. d4 {[%clk 0:03:01.9]} 1... g6 {[%clk 0:03:00.7]} 2. c4 {[%clk 0:03:01.6]}
2... Bg7 {[%clk 0:03:02.3]} 3. Nf3 {[%clk 0:03:03.3]} 3... d6 {[%clk 0:03:03.8]}
4. e4 {[%clk 0:03:04.7]} 4... e5 {[%clk 0:03:03.9]} 5. Nc3 {[%clk 0:03:03.9]}
5... exd4 {[%clk 0:03:03.8]} 6. Nxd4 {[%clk 0:03:04.7]} 6... Nc6 {[%clk
0:03:04.6]} 7. Be3 {[%clk 0:03:05.6]} 7... Nge7 {[%clk 0:03:05.4]} 8. Be2 {[%clk
0:03:06.5]} 8... O-O {[%clk 0:03:04.5]} 9. O-O {[%clk 0:03:03.2]} 9... f5 {[%clk
0:03:05.4]} 10. exf5 {[%clk 0:02:57.8]} 10... Bxd4 {[%clk 0:03:05.7]} 11. Bxd4
{[%clk 0:02:57.8]} 11... Nxf5 {[%clk 0:03:07.3]} 12. Be3 {[%clk 0:02:52.1]}
12... Nxe3 {[%clk 0:03:08.2]} 13. fxe3 {[%clk 0:02:53.8]} 13... Be6 {[%clk
0:03:09.6]} 14. Qd2 {[%clk 0:02:50]} 14... Ne5 {[%clk 0:03:00.1]} 15. b3 {[%clk
0:02:50.7]} 15... Qd7 {[%clk 0:02:55.2]} 16. Ne4 {[%clk 0:02:50.1]} 16... Qg7
{[%clk 0:02:53.7]} 17. c5 {[%clk 0:02:42.4]} 17... d5 {[%clk 0:02:48.9]} 18. Ng5
{[%clk 0:02:43.2]} 18... Qe7 {[%clk 0:02:49.8]} 19. h4 {[%clk 0:02:40.2]} 19...
c6 {[%clk 0:02:46.2]} 20. Qd4 {[%clk 0:02:39.8]} 20... Bf5 {[%clk 0:02:46.7]}
21. Rf4 {[%clk 0:02:22.7]} 21... h6 {[%clk 0:02:34.2]} 22. Nf3 {[%clk
0:02:23.6]} 22... Nxf3+ {[%clk 0:02:33.8]} 23. Bxf3 {[%clk 0:02:24.7]} 23... g5
{[%clk 0:02:32.6]} 24. hxg5 {[%clk 0:02:12.7]} 24... hxg5 {[%clk 0:02:33.1]} 25.
Rxf5 {[%clk 0:02:12.7]} 25... Rxf5 {[%clk 0:02:34]} 26. Bg4 {[%clk 0:02:14.2]}
26... Re5 {[%clk 0:02:34]} 27. Qd3 {[%clk 0:02:03.1]} 27... Rf8 {[%clk
0:02:24.9]} 28. Re1 {[%clk 0:01:53.7]} 28... Kg7 {[%clk 0:02:22.9]} 29. Qd4
{[%clk 0:01:54.5]} 29... Rf6 {[%clk 0:02:23.4]} 30. Bf3 {[%clk 0:01:51.1]} 30...
b6 {[%clk 0:02:12.9]} 31. b4 {[%clk 0:01:47.2]} 31... bxc5 {[%clk 0:02:04.9]}
32. bxc5 {[%clk 0:01:49.1]} 32... Kh6 {[%clk 0:02:02.8]} 33. Kf2 {[%clk
0:01:48.2]} 33... Re4 {[%clk 0:02:00.2]} 34. Qb2 {[%clk 0:01:44.9]} 34... g4
{[%clk 0:01:56.7]} 35. Rh1+ {[%clk 0:01:41.2]} 35... Kg7 {[%clk 0:01:55.3]} 36.
Qb8 {[%clk 0:01:38.1]} 36... Rf8 {[%clk 0:01:36.8]} 37. Qh2 {[%clk 0:01:35.6]}
37... Kf7 {[%clk 0:00:43.6]} 38. Bxe4 {[%clk 0:01:23]} 38... Qxe4 {[%clk
0:00:38.5]} 39. Qh6 {[%clk 0:01:14.1]} 39... Ke7+ {[%clk 0:00:30.4]} 40. Kg1
{[%clk 0:01:11.5]} 40... Rf6 {[%clk 0:00:14.1]} 41. Qg7+ {[%clk 0:01:08]} 41...
Rf7 {[%clk 0:00:13.4]} 42. Qg5+ {[%clk 0:01:05.7]} 42... Kd7 {[%clk 0:00:14.5]}
43. Rh8 {[%clk 0:00:58.6]} 43... Qb1+ {[%clk 0:00:14.4]} 44. Kh2 {[%clk
0:01:00]} 44... Rh7+ {[%clk 0:00:12.9]} 45. Rxh7+ {[%clk 0:01:01.3]} 45... Qxh7+
{[%clk 0:00:14]} 46. Kg3 {[%clk 0:01:03.2]} 46... Qc2 {[%clk 0:00:15.3]} 47.
Qxg4+ {[%clk 0:01:02.3]} 47... Kc7 {[%clk 0:00:16.6]} 48. Qg7+ {[%clk
0:01:03.3]} 48... Kb8 {[%clk 0:00:17.9]} 49. Qf8+ {[%clk 0:00:56.9]} 49... Kb7
{[%clk 0:00:19.1]} 50. Qe7+ {[%clk 0:00:56.4]} 50... Ka6 {[%clk 0:00:20.4]} 51.
a3 {[%clk 0:00:54.3]} 51... Qf5 {[%clk 0:00:17.7]} 52. Kh4 {[%clk 0:00:41.7]}
52... Qd3 {[%clk 0:00:08.3]} 53. g4 {[%clk 0:00:33]} 53... Qxa3 {[%clk
0:00:08.9]} 54. g5 {[%clk 0:00:33.5]} 54... Qd3 {[%clk 0:00:09.6]} 55. Kh5
{[%clk 0:00:30.5]} 55... Qe2+ {[%clk 0:00:10.3]} 56. Kh6 {[%clk 0:00:31.1]}
56... d4 {[%clk 0:00:11.5]} 57. g6 {[%clk 0:00:29.8]} 57... Qxe3+ {[%clk
0:00:10.7]} 58. Qxe3 {[%clk 0:00:28.6]} 58... dxe3 {[%clk 0:00:12]} 59. g7
{[%clk 0:00:29.8]} 59... e2 {[%clk 0:00:13.7]} 60. g8=Q {[%clk 0:00:30.6]} 60...
e1=Q {[%clk 0:00:14.4]} 61. Qc8+ {[%clk 0:00:26.7]} 61... Kb5 {[%clk 0:00:14.4]}
62. Qb7+ {[%clk 0:00:28]} 62... Kxc5 {[%clk 0:00:15.8]} 63. Qxa7+ {[%clk
0:00:29.6]} 63... Kd6 {[%clk 0:00:17]} 64. Qb8+ {[%clk 0:00:27.3]} 64... Kd5
{[%clk 0:00:15.7]} 65. Qb3+ {[%clk 0:00:27.7]} 65... Kd4 {[%clk 0:00:13]} 66.
Qa4+ {[%clk 0:00:28.9]} 66... Kc5 {[%clk 0:00:13.4]} 67. Qc2+ {[%clk 0:00:29.3]}
67... Kb5 {[%clk 0:00:12.8]} 68. Qd3+ {[%clk 0:00:28.8]} 68... Kb6 {[%clk
0:00:14.1]} 69. Qb3+ {[%clk 0:00:28.7]} 69... Kc7 {[%clk 0:00:15.2]} 70. Qf7+
{[%clk 0:00:29.8]} 70... Kd6 {[%clk 0:00:16.4]} 71. Qf4+ {[%clk 0:00:21.5]}
71... Qe5 {[%clk 0:00:17.1]} 72. Qb4+ {[%clk 0:00:22.1]} 72... Kc7 {[%clk
0:00:17.2]} 73. Kg6 {[%clk 0:00:21.8]} 73... Qd6+ {[%clk 0:00:17.8]} 74. Qxd6+
{[%clk 0:00:23.1]} 74... Kxd6 {[%clk 0:00:18.9]} 75. Kf5 {[%clk 0:00:24.7]}
75... Kd5 {[%clk 0:00:20.3]} 0-1

[Event "*** Titled Tuesday 3|2 Blitz"]
[Site "Chess.com"]
[Date "2015.10.06"]
[Round "8"]
[White "Keranke"]
[Black "E-Shaposhnikov"]
[Result "1/2-1/2"]
[WhiteElo "2577"]
[BlackElo "2547"]
[TimeControl "180+2"]
[EndTime "12:45:45 PDT"]
[Termination "Game drawn by agreement"]

1. d4 {[%clk 0:03:01.9]} 1... Nf6 {[%clk 0:02:47.7]} 2. Nf3 {[%clk 0:02:57.4]}
2... e6 {[%clk 0:02:48.3]} 3. g3 {[%clk 0:02:57.1]} 3... b5 {[%clk 0:02:48.3]}
4. Bg2 {[%clk 0:02:59]} 4... Bb7 {[%clk 0:02:49.2]} 5. O-O {[%clk 0:03:00.9]}
5... c5 {[%clk 0:02:50.1]} 6. a4 {[%clk 0:03:01.7]} 6... b4 {[%clk 0:02:49.1]}
7. c3 {[%clk 0:02:56.3]} 7... cxd4 {[%clk 0:02:46.9]} 8. cxd4 {[%clk 0:02:53]}
8... Be7 {[%clk 0:02:47.6]} 9. a5 {[%clk 0:02:51.9]} 9... O-O {[%clk 0:02:47.6]}
10. Nbd2 {[%clk 0:02:50.6]} 10... a6 {[%clk 0:02:32.9]} 11. Nc4 {[%clk
0:02:50.5]} 11... Be4 {[%clk 0:02:23.2]} 12. Nb6 {[%clk 0:02:29.7]} 12... Ra7
{[%clk 0:02:23.9]} 13. Ne5 {[%clk 0:02:31.1]} 13... Bxg2 {[%clk 0:02:23]} 14.
Kxg2 {[%clk 0:02:33]} 14... Nc6 {[%clk 0:02:20.5]} 15. Nxc6 {[%clk 0:02:29.1]}
15... dxc6 {[%clk 0:02:22.4]} 16. Qc2 {[%clk 0:02:17.6]} 16... Rc7 {[%clk
0:02:01.7]} 17. Bf4 {[%clk 0:02:17]} 17... Bd6 {[%clk 0:01:58.9]} 18. Bxd6
{[%clk 0:02:17.8]} 18... Qxd6 {[%clk 0:02:00.8]} 19. Qc4 {[%clk 0:02:17.5]}
19... Nd5 {[%clk 0:01:53.7]} 20. Qxa6 {[%clk 0:02:13.1]} 20... e5 {[%clk
0:01:41.5]} 21. Nc4 {[%clk 0:02:10]} 21... Qg6 {[%clk 0:01:28.5]} 22. Nxe5
{[%clk 0:02:10.1]} 22... Qe4+ {[%clk 0:01:28.5]} 23. Nf3 {[%clk 0:02:10.4]}
23... Re8 {[%clk 0:01:28.6]} 24. Qd3 {[%clk 0:01:48.5]} 24... Qg4 {[%clk
0:01:25.1]} 25. Qd2 {[%clk 0:01:40.5]} 25... Rxe2 {[%clk 0:01:19.7]} 26. Qg5
{[%clk 0:01:37.6]} 26... Ne3+ {[%clk 0:01:17.8]} 27. Qxe3 {[%clk 0:01:35.5]}
27... Rxe3 {[%clk 0:01:17.5]} 28. fxe3 {[%clk 0:01:37.4]} 28... Qe4 {[%clk
0:01:11.7]} 29. a6 {[%clk 0:01:38]} 29... Ra7 {[%clk 0:01:11.3]} 30. Rfc1 {[%clk
0:01:35.3]} 30... h6 {[%clk 0:00:59.5]} 31. Kf2 {[%clk 0:01:36.3]} 31... Re7
{[%clk 0:00:48.4]} 32. Ne5 {[%clk 0:01:29.3]} 32... f6 {[%clk 0:00:42.7]} 33. a7
{[%clk 0:01:09.3]} 33... Rxa7 {[%clk 0:00:42.4]} 34. Rxa7 {[%clk 0:01:10.6]}
34... fxe5 {[%clk 0:00:43.5]} 35. dxe5 {[%clk 0:01:03.7]} 35... Qxe5 {[%clk
0:00:43.3]} 36. Rxc6 {[%clk 0:01:00.3]} 36... Qxb2+ {[%clk 0:00:28.3]} 37. Kf3
{[%clk 0:01:01.6]} 37... Qxh2 {[%clk 0:00:28.9]} 38. Rcc7 {[%clk 0:00:53.6]}
38... Qh5+ {[%clk 0:00:24.4]} 39. g4 {[%clk 0:00:50.8]} 39... Qe5 {[%clk
0:00:16.4]} 40. Rcb7 {[%clk 0:00:48.9]} 40... b3 {[%clk 0:00:16.8]} 41. Ra8+
{[%clk 0:00:48.2]} 41... Kh7 {[%clk 0:00:17.7]} 42. Rab8 {[%clk 0:00:50.1]}
42... Qd5+ {[%clk 0:00:18.2]} 43. Kg3 {[%clk 0:00:49.1]} 43... Qe5+ {[%clk
0:00:18.6]} 44. Kf2 {[%clk 0:00:50.3]} 44... Qh2+ {[%clk 0:00:17.5]} 45. Kf3
{[%clk 0:00:51.8]} 45... Qh3+ {[%clk 0:00:18.6]} 46. Kf4 {[%clk 0:00:48.8]}
46... Qh2+ {[%clk 0:00:19.8]} 47. Kf3 {[%clk 0:00:50.1]} 47... Qh3+ {[%clk
0:00:20.8]} 48. Kf4 {[%clk 0:00:51.7]} 48... Qh2+ {[%clk 0:00:19.1]} 49. Kf3
{[%clk 0:00:52.9]} 49... Qh1+ {[%clk 0:00:18.5]} 50. Kg3 {[%clk 0:00:52.5]}
50... Qg1+ {[%clk 0:00:18.6]} 51. Kf3 {[%clk 0:00:53.9]} 51... Qf1+ {[%clk
0:00:19.8]} 52. Kg3 {[%clk 0:00:55.4]} 52... Qg1+ {[%clk 0:00:20.7]} 53. Kf3
{[%clk 0:00:56.9]} 53... Qd1+ {[%clk 0:00:21.4]} 54. Kg3 {[%clk 0:00:57.7]}
54... Qd6+ {[%clk 0:00:22.9]} 55. Kf3 {[%clk 0:00:58.9]} 55... Qd5+ {[%clk
0:00:24.4]} 56. Kg3 {[%clk 0:01:00.4]} 56... Qe5+ {[%clk 0:00:23.4]} 57. Kf3
{[%clk 0:01:01.8]} 57... Qf6+ {[%clk 0:00:24.6]} 58. Kg3 {[%clk 0:01:01]} 58...
Qd6+ {[%clk 0:00:26.2]} 59. Kf3 {[%clk 0:01:02.3]} 59... Qd1+ {[%clk 0:00:27]}
60. Kg3 {[%clk 0:01:03.6]} 60... Qe1+ {[%clk 0:00:28.1]} 61. Kf3 {[%clk
0:01:04.9]} 61... Qf1+ {[%clk 0:00:29.7]} 62. Kg3 {[%clk 0:01:06.3]} 62... Qe1+
{[%clk 0:00:29.1]} 63. Kf3 {[%clk 0:01:06.9]} 63... Qd1+ {[%clk 0:00:30.2]} 64.
Kg3 {[%clk 0:01:05.2]} 64... Qd6+ {[%clk 0:00:31.6]} 65. Kf3 {[%clk 0:01:06.4]}
65... Qf6+ {[%clk 0:00:32.7]} 66. Kg3 {[%clk 0:01:06.8]} 66... Qe5+ {[%clk
0:00:28.7]} 67. Kf3 {[%clk 0:01:07.5]} 67... Qh2 {[%clk 0:00:26.8]} 68. Rxb3
{[%clk 0:01:07.8]} 68... Qh3+ {[%clk 0:00:28]} 69. Kf4 {[%clk 0:01:00.2]} 69...
g5+ {[%clk 0:00:28.6]} 70. Ke5 {[%clk 0:00:59.4]} 70... Qxg4 {[%clk 0:00:27.9]}
71. e4 {[%clk 0:00:54]} 71... Qf4+ {[%clk 0:00:27.9]} 72. Kd5 {[%clk 0:00:55.4]}
72... g4 {[%clk 0:00:26.7]} 73. e5 {[%clk 0:00:53]} 73... g3 {[%clk 0:00:24.5]}
74. R3b7+ {[%clk 0:00:46.8]} 74... Kg6 {[%clk 0:00:24.9]} 75. Rg8+ {[%clk
0:00:48.4]} 75... Kh5 {[%clk 0:00:25.7]} 76. Rbg7 {[%clk 0:00:49.2]} 76... Qf3+
{[%clk 0:00:26.2]} 77. Kd6 {[%clk 0:00:50.3]} 77... Qa3+ {[%clk 0:00:25.1]} 78.
Ke6 {[%clk 0:00:51.1]} 78... Qb3+ {[%clk 0:00:26.3]} 79. Kf6 {[%clk 0:00:51.8]}
79... Qf3+ {[%clk 0:00:26.9]} 80. Ke7 {[%clk 0:00:53.2]} 80... Qb7+ {[%clk
0:00:25.4]} 81. Ke6 {[%clk 0:00:53.4]} 81... Qc6+ {[%clk 0:00:20.3]} 82. Kf7
{[%clk 0:00:52.9]} 82... Qf3+ {[%clk 0:00:18.5]} 83. Ke7 {[%clk 0:00:51.2]}
83... Qb7+ {[%clk 0:00:17.2]} 84. Kd6 {[%clk 0:00:52.5]} 84... Qb4+ {[%clk
0:00:16.5]} 85. Kd5 {[%clk 0:00:53.7]} 85... Qd2+ {[%clk 0:00:17.6]} 86. Ke4
{[%clk 0:00:54.3]} 86... Qe2+ {[%clk 0:00:18.7]} 87. Kf4 {[%clk 0:00:52.7]}
87... Qf2+ {[%clk 0:00:19.7]} 88. Ke4 {[%clk 0:00:53.4]} 88... Qe2+ {[%clk
0:00:21.6]} 89. Kf5 {[%clk 0:00:52.9]} 89... Qf3+ {[%clk 0:00:22.5]} 90. Ke6
{[%clk 0:00:54.4]} 90... Qc6+ {[%clk 0:00:24.1]} 91. Ke7 {[%clk 0:00:53.8]}
1/2-1/2

[Event "*** Titled Tuesday 3|2 Blitz"]
[Site "Chess.com"]
[Date "2015.10.06"]
[Round "9"]
[White "Moltini"]
[Black "Boryboy"]
[Result "1-0"]
[WhiteElo "2203"]
[BlackElo "2448"]
[TimeControl "180+2"]
[EndTime "12:50:03 PDT"]
[Termination "Moltini won by resignation"]

1. d4 {[%clk 0:03:01.9]} 1... e6 {[%clk 0:03:01.2]} 2. c4 {[%clk 0:03:03.2]}
2... b6 {[%clk 0:02:58.5]} 3. Nf3 {[%clk 0:02:59.5]} 3... Bb7 {[%clk 0:02:59.6]}
4. a3 {[%clk 0:03:00.7]} 4... f5 {[%clk 0:03:01.1]} 5. Nc3 {[%clk 0:03:02]} 5...
Nf6 {[%clk 0:03:03]} 6. g3 {[%clk 0:03:03.5]} 6... Be7 {[%clk 0:03:04.5]} 7. Bg2
{[%clk 0:03:04.9]} 7... O-O {[%clk 0:03:06.2]} 8. O-O {[%clk 0:03:06.5]} 8...
Ne4 {[%clk 0:03:07.8]} 9. Qd3 {[%clk 0:03:03.1]} 9... d5 {[%clk 0:03:07.5]} 10.
Ne5 {[%clk 0:03:03.3]} 10... Nd7 {[%clk 0:03:08.5]} 11. Nxd7 {[%clk 0:03:03.7]}
11... Qxd7 {[%clk 0:03:09.8]} 12. cxd5 {[%clk 0:03:05]} 12... exd5 {[%clk
0:03:11]} 13. Bf4 {[%clk 0:03:06]} 13... c6 {[%clk 0:03:11.2]} 14. f3 {[%clk
0:03:05.6]} 14... Nd6 {[%clk 0:03:11.9]} 15. e4 {[%clk 0:03:04.8]} 15... fxe4
{[%clk 0:03:13.1]} 16. fxe4 {[%clk 0:03:06.1]} 16... dxe4 {[%clk 0:03:14.4]} 17.
Nxe4 {[%clk 0:03:07.3]} 17... Nf5 {[%clk 0:03:14.8]} 18. Rad1 {[%clk 0:03:06.1]}
18... Rad8 {[%clk 0:03:15.2]} 19. Be5 {[%clk 0:03:05.2]} 19... c5 {[%clk
0:03:09.6]} 20. Nxc5 {[%clk 0:03:01.2]} 20... bxc5 {[%clk 0:02:59.2]} 21. Bxb7
{[%clk 0:03:02]} 21... Qxb7 {[%clk 0:02:46.5]} 22. Rxf5 {[%clk 0:03:02]} 22...
Rxf5 {[%clk 0:02:46.1]} 23. Qxf5 {[%clk 0:03:03]} 23... cxd4 {[%clk 0:02:45.3]}
24. Qe6+ {[%clk 0:02:59.4]} 24... Kh8 {[%clk 0:02:42.6]} 25. Qf7 {[%clk
0:02:56.6]} 25... Rg8 {[%clk 0:02:38.3]} 26. Bxd4 {[%clk 0:02:55.3]} 26... Qe4
{[%clk 0:02:36.8]} 27. Qf2 {[%clk 0:02:26.1]} 27... a5 {[%clk 0:02:26.1]} 28.
Re1 {[%clk 0:02:26.2]} 28... Qb7 {[%clk 0:02:21.7]} 29. Qf7 {[%clk 0:02:26.8]}
29... Qd7 {[%clk 0:02:21.1]} 30. Re4 {[%clk 0:02:11.6]} 1-0

[Event "*** Titled Tuesday 3|2 Blitz"]
[Site "Chess.com"]
[Date "2015.10.06"]
[Round "9"]
[White "kpio91"]
[Black "Mornar1951"]
[Result "1-0"]
[WhiteElo "2528"]
[BlackElo "2602"]
[TimeControl "180+2"]
[EndTime "12:50:36 PDT"]
[Termination "kpio91 won by checkmate"]

1. c4 {[%clk 0:03:01.9]} 1... b6 {[%clk 0:03:00.1]} 2. e4 {[%clk 0:03:01.4]}
2... Bb7 {[%clk 0:03:01.3]} 3. Nc3 {[%clk 0:03:03]} 3... e5 {[%clk 0:03:02.6]}
4. g3 {[%clk 0:03:02.7]} 4... Bc5 {[%clk 0:02:57.6]} 5. Bg2 {[%clk 0:03:01]}
5... Nc6 {[%clk 0:02:58.1]} 6. Nge2 {[%clk 0:03:01.5]} 6... Nge7 {[%clk
0:02:58.4]} 7. d3 {[%clk 0:03:00.1]} 7... O-O {[%clk 0:02:59.2]} 8. O-O {[%clk
0:02:55.2]} 8... Nd4 {[%clk 0:02:57.3]} 9. Be3 {[%clk 0:02:47.6]} 9... Nxe2+
{[%clk 0:02:53.7]} 10. Qxe2 {[%clk 0:02:47.9]} 10... Nc6 {[%clk 0:02:54.3]} 11.
Bxc5 {[%clk 0:02:39]} 11... bxc5 {[%clk 0:02:56.2]} 12. Qd2 {[%clk 0:02:40.6]}
12... Nd4 {[%clk 0:02:53.3]} 13. f4 {[%clk 0:02:40.1]} 13... exf4 {[%clk
0:02:51]} 14. Rxf4 {[%clk 0:02:35.8]} 14... d6 {[%clk 0:02:49.3]} 15. Ne2 {[%clk
0:02:33.7]} 15... Nc6 {[%clk 0:02:40.4]} 16. Raf1 {[%clk 0:02:30.9]} 16... Ne5
{[%clk 0:02:40.6]} 17. b3 {[%clk 0:02:28.3]} 17... Bc8 {[%clk 0:02:34.2]} 18. h3
{[%clk 0:02:19.4]} 18... Be6 {[%clk 0:02:34.6]} 19. g4 {[%clk 0:02:18.8]} 19...
f6 {[%clk 0:02:33.4]} 20. Ng3 {[%clk 0:02:19.5]} 20... a5 {[%clk 0:02:27.5]} 21.
g5 {[%clk 0:01:58.8]} 21... Qe7 {[%clk 0:02:17.8]} 22. gxf6 {[%clk 0:01:55.5]}
22... Rxf6 {[%clk 0:02:19.7]} 23. Rxf6 {[%clk 0:01:56]} 23... gxf6 {[%clk
0:02:21.6]} 24. Nh5 {[%clk 0:01:54.6]} 24... Rf8 {[%clk 0:02:16.1]} 25. Rxf6
{[%clk 0:01:48.4]} 25... Rxf6 {[%clk 0:02:11.5]} 26. Qg5+ {[%clk 0:01:49.1]}
26... Kh8 {[%clk 0:02:07.9]} 27. Nxf6 {[%clk 0:01:33.6]} 27... Bxh3 {[%clk
0:02:05]} 28. Qg8# {[%clk 0:01:33.1]} 1-0